[Event "Early-Titled-Tuesday-Blitz-April-02-2024"]
[Site "Chess.com"]
[Date "2024.04.02"]
[Round "1"]
[White "AlexandraSamaganova"]
[Black "KarolKacprzak"]
[Result "0-1"]
[WhiteElo "2431"]
[BlackElo "2742"]
[TimeControl "180+1"]
[EndTime "8:07:44 PDT"]
[Termination "KarolKacprzak won on time"]

1. c4 {[%clk 0:03:00.9]} 1... e6 {[%clk 0:02:57.7]} 2. Nc3 {[%clk 0:03:00.4]}
2... d5 {[%clk 0:02:57.6]} 3. e3 {[%clk 0:02:58.4]} 3... Nf6 {[%clk 0:02:57.3]}
4. Nf3 {[%clk 0:02:57.5]} 4... Bd6 {[%clk 0:02:54.4]} 5. d4 {[%clk 0:02:45.7]}
5... b6 {[%clk 0:02:52.1]} 6. cxd5 {[%clk 0:02:44.5]} 6... exd5 {[%clk
0:02:51.8]} 7. Bd3 {[%clk 0:02:43.9]} 7... O-O {[%clk 0:02:51.4]} 8. O-O {[%clk
0:02:41.9]} 8... a6 {[%clk 0:02:51.9]} 9. h3 {[%clk 0:02:41.4]} 9... Bb7 {[%clk
0:02:51.9]} 10. Re1 {[%clk 0:02:41.7]} 10... Re8 {[%clk 0:02:51.3]} 11. Qc2
{[%clk 0:02:38.4]} 11... Nbd7 {[%clk 0:02:48.7]} 12. e4 {[%clk 0:02:32.7]} 12...
dxe4 {[%clk 0:02:28.5]} 13. Nxe4 {[%clk 0:02:33.6]} 13... Nxe4 {[%clk
0:02:28.6]} 14. Bxe4 {[%clk 0:02:34.2]} 14... Bxe4 {[%clk 0:02:29.5]} 15. Rxe4
{[%clk 0:02:34.7]} 15... Nf6 {[%clk 0:02:30.2]} 16. Rxe8+ {[%clk 0:02:32.1]}
16... Qxe8 {[%clk 0:02:31.1]} 17. Bg5 {[%clk 0:02:27.4]} 17... Qe4 {[%clk
0:02:30.4]} 18. Qc4 {[%clk 0:02:08.3]} 18... Qd5 {[%clk 0:02:25.6]} 19. Qxd5
{[%clk 0:02:03.4]} 19... Nxd5 {[%clk 0:02:26.5]} 20. Re1 {[%clk 0:02:03.6]}
20... f6 {[%clk 0:02:25.5]} 21. Bd2 {[%clk 0:02:02.3]} 21... Kf7 {[%clk
0:02:26.1]} 22. Kf1 {[%clk 0:02:02]} 22... a5 {[%clk 0:02:20.9]} 23. a3 {[%clk
0:02:01.3]} 23... a4 {[%clk 0:02:15.6]} 24. Re4 {[%clk 0:01:56.4]} 24... b5
{[%clk 0:02:14.1]} 25. Ke2 {[%clk 0:01:51.9]} 25... f5 {[%clk 0:01:30.6]} 26.
Rh4 {[%clk 0:01:09.8]} 26... h6 {[%clk 0:01:27.7]} 27. g4 {[%clk 0:01:02.1]}
27... Re8+ {[%clk 0:01:11.3]} 28. Kd1 {[%clk 0:00:55.1]} 28... f4 {[%clk
0:01:05.9]} 29. g5 {[%clk 0:00:50.4]} 29... hxg5 {[%clk 0:00:53.5]} 30. Nxg5+
{[%clk 0:00:49.2]} 30... Kg6 {[%clk 0:00:53.9]} 31. Rg4 {[%clk 0:00:43.1]} 31...
Nf6 {[%clk 0:00:50.6]} 32. Rg1 {[%clk 0:00:41.2]} 32... Kf5 {[%clk 0:00:49.5]}
33. Nf3 {[%clk 0:00:35.5]} 33... Rh8 {[%clk 0:00:45.5]} 34. Rxg7 {[%clk
0:00:27.7]} 34... Rxh3 {[%clk 0:00:45]} 35. Ke2 {[%clk 0:00:26.4]} 35... Rh5
{[%clk 0:00:34]} 36. Ba5 {[%clk 0:00:19.9]} 36... Nd5 {[%clk 0:00:33.7]} 37. Kd3
{[%clk 0:00:09.2]} 37... Rh3 {[%clk 0:00:31.7]} 38. Ke2 {[%clk 0:00:09.1]} 38...
Rh1 {[%clk 0:00:28]} 39. Rg5+ {[%clk 0:00:08]} 39... Ke6 {[%clk 0:00:27.6]} 40.
Rg6+ {[%clk 0:00:08.2]} 40... Kd7 {[%clk 0:00:20.9]} 41. Kd2 {[%clk 0:00:04]}
41... Rf1 {[%clk 0:00:20.1]} 42. Rg2 {[%clk 0:00:02.2]} 42... Rb1 {[%clk
0:00:17.1]} 43. Kc2 {[%clk 0:00:02.5]} 43... Rf1 {[%clk 0:00:17.8]} 44. Ne5+
{[%clk 0:00:02.2]} 44... Ke6 {[%clk 0:00:16.8]} 45. Rg6+ {[%clk 0:00:01.3]}
45... Kf5 {[%clk 0:00:17]} 46. Rg2 {[%clk 0:00:01.9]} 46... Bxe5 {[%clk
0:00:16.3]} 47. dxe5 {[%clk 0:00:01.9]} 47... f3 {[%clk 0:00:17.1]} 48. Rh2
{[%clk 0:00:01.1]} 48... Kxe5 {[%clk 0:00:17.5]} 0-1

[Event "Early-Titled-Tuesday-Blitz-April-02-2024"]
[Site "Chess.com"]
[Date "2024.04.02"]
[Round "1"]
[White "ViIIagra"]
[Black "RealPerangel"]
[Result "1/2-1/2"]
[WhiteElo "2894"]
[BlackElo "2520"]
[TimeControl "180+1"]
[EndTime "8:07:46 PDT"]
[Termination "Game drawn by repetition"]

1. d4 {[%clk 0:03:00.9]} 1... c5 {[%clk 0:02:59.1]} 2. c3 {[%clk 0:02:59.6]}
2... Nf6 {[%clk 0:02:59.6]} 3. Nf3 {[%clk 0:03:00.1]} 3... cxd4 {[%clk
0:02:58.2]} 4. cxd4 {[%clk 0:03:00.1]} 4... d5 {[%clk 0:02:56.4]} 5. Nc3 {[%clk
0:02:59.8]} 5... Nc6 {[%clk 0:02:57]} 6. Bf4 {[%clk 0:03:00.2]} 6... Bf5 {[%clk
0:02:57.4]} 7. e3 {[%clk 0:02:59.3]} 7... e6 {[%clk 0:02:57.7]} 8. Qb3 {[%clk
0:02:57.8]} 8... Bb4 {[%clk 0:02:45.4]} 9. Bb5 {[%clk 0:02:56.6]} 9... O-O
{[%clk 0:02:43.9]} 10. Bxc6 {[%clk 0:02:56.4]} 10... Bxc3+ {[%clk 0:02:44]} 11.
Qxc3 {[%clk 0:02:54.5]} 11... Rc8 {[%clk 0:02:43.4]} 12. Ne5 {[%clk 0:02:46.3]}
12... bxc6 {[%clk 0:02:41.8]} 13. Rc1 {[%clk 0:02:39.9]} 13... c5 {[%clk
0:01:47.7]} 14. dxc5 {[%clk 0:02:37.8]} 14... Ne4 {[%clk 0:01:48]} 15. Qa3
{[%clk 0:02:38.1]} 15... f6 {[%clk 0:01:48.4]} 16. Nf3 {[%clk 0:02:26.9]} 16...
e5 {[%clk 0:01:48.4]} 17. Bg3 {[%clk 0:02:27.5]} 17... Qe7 {[%clk 0:01:45.1]}
18. b4 {[%clk 0:01:42.8]} 18... a5 {[%clk 0:01:43.6]} 19. O-O {[%clk 0:01:35.7]}
19... axb4 {[%clk 0:01:42.2]} 20. Qxb4 {[%clk 0:01:36.6]} 20... Rxc5 {[%clk
0:01:40]} 21. Nd2 {[%clk 0:01:15.3]} 21... Rc7 {[%clk 0:01:33.5]} 22. Qxe7
{[%clk 0:01:10.9]} 22... Rxe7 {[%clk 0:01:33.4]} 23. Nxe4 {[%clk 0:01:11.5]}
23... Bxe4 {[%clk 0:01:33.8]} 24. f3 {[%clk 0:01:10.1]} 24... Bd3 {[%clk
0:01:29.1]} 25. Rfd1 {[%clk 0:01:05.8]} 25... Bc4 {[%clk 0:01:29.3]} 26. Be1
{[%clk 0:01:06.6]} 26... Rb7 {[%clk 0:01:22.8]} 27. a3 {[%clk 0:00:57.6]} 27...
Kf7 {[%clk 0:00:52.4]} 28. Bb4 {[%clk 0:00:56.2]} 28... Ra8 {[%clk 0:00:49.7]}
29. e4 {[%clk 0:00:55.5]} 29... Ke6 {[%clk 0:00:49.8]} 30. Kf2 {[%clk
0:00:51.9]} 30... Rd7 {[%clk 0:00:43.4]} 31. h3 {[%clk 0:00:36.2]} 31... h5
{[%clk 0:00:42.8]} 32. exd5+ {[%clk 0:00:34.7]} 32... Bxd5 {[%clk 0:00:37]} 33.
Rc5 {[%clk 0:00:34.4]} 33... Ra6 {[%clk 0:00:32.5]} 34. Rdc1 {[%clk 0:00:33.8]}
34... h4 {[%clk 0:00:28.9]} 35. Rc8 {[%clk 0:00:33.3]} 35... Ra8 {[%clk
0:00:28.9]} 36. Rxa8 {[%clk 0:00:25.4]} 36... Bxa8 {[%clk 0:00:29.8]} 37. Rc8
{[%clk 0:00:25.8]} 37... Bd5 {[%clk 0:00:27.5]} 38. Rc2 {[%clk 0:00:16.5]} 38...
Rb7 {[%clk 0:00:26.4]} 39. Rb2 {[%clk 0:00:16.3]} 39... Bc6 {[%clk 0:00:25.5]}
40. Rc2 {[%clk 0:00:16.4]} 40... Bd5 {[%clk 0:00:25.1]} 41. Re2 {[%clk
0:00:14.1]} 41... g5 {[%clk 0:00:24.4]} 42. Rc2 {[%clk 0:00:14]} 42... Ra7
{[%clk 0:00:23.6]} 43. Ke3 {[%clk 0:00:14.3]} 43... Rb7 {[%clk 0:00:23.5]} 44.
Rc5 {[%clk 0:00:13.9]} 44... Ra7 {[%clk 0:00:23.3]} 45. Rb5 {[%clk 0:00:13.6]}
45... Rc7 {[%clk 0:00:23.2]} 46. Rb6+ {[%clk 0:00:13.8]} 46... Kf5 {[%clk
0:00:23.1]} 47. Rd6 {[%clk 0:00:12.7]} 47... Be6 {[%clk 0:00:22.9]} 48. Rd2
{[%clk 0:00:11.9]} 48... Rc4 {[%clk 0:00:22.4]} 49. Be7 {[%clk 0:00:11.7]} 49...
Rc7 {[%clk 0:00:21.5]} 50. Bb4 {[%clk 0:00:11.5]} 50... Rc4 {[%clk 0:00:21.5]}
51. Kf2 {[%clk 0:00:11.9]} 51... Kg6 {[%clk 0:00:19.7]} 52. Rb2 {[%clk
0:00:11.9]} 52... Bd7 {[%clk 0:00:19.3]} 53. Rd2 {[%clk 0:00:12.1]} 53... Be6
{[%clk 0:00:19.5]} 54. Rb2 {[%clk 0:00:12.2]} 54... Bd7 {[%clk 0:00:19.7]} 55.
Rd2 {[%clk 0:00:11.8]} 55... Be6 {[%clk 0:00:20.2]} 1/2-1/2

[Event "Early-Titled-Tuesday-Blitz-April-02-2024"]
[Site "Chess.com"]
[Date "2024.04.02"]
[Round "1"]
[White "HATilay"]
[Black "LeoWin2012"]
[Result "1-0"]
[WhiteElo "2619"]
[BlackElo "2295"]
[TimeControl "180+1"]
[EndTime "8:07:51 PDT"]
[Termination "HATilay won by checkmate"]

1. e4 {[%clk 0:02:43.6]} 1... e5 {[%clk 0:02:59]} 2. Nf3 {[%clk 0:02:42.4]} 2...
Nf6 {[%clk 0:02:58.9]} 3. d4 {[%clk 0:02:38.9]} 3... Nxe4 {[%clk 0:02:58.2]} 4.
Bd3 {[%clk 0:02:34.6]} 4... d5 {[%clk 0:02:56.5]} 5. Nxe5 {[%clk 0:02:33.7]}
5... Bd6 {[%clk 0:02:51]} 6. Nc3 {[%clk 0:01:57.7]} 6... Nxc3 {[%clk 0:02:49.2]}
7. bxc3 {[%clk 0:01:57.8]} 7... Nc6 {[%clk 0:02:45.3]} 8. O-O {[%clk 0:01:52]}
8... O-O {[%clk 0:02:42.8]} 9. Re1 {[%clk 0:01:28.4]} 9... Qf6 {[%clk
0:02:29.6]} 10. Qh5 {[%clk 0:00:57.8]} 10... g6 {[%clk 0:02:27.4]} 11. Ng4
{[%clk 0:00:57.9]} 11... Bxg4 {[%clk 0:02:22.8]} 12. Qxg4 {[%clk 0:00:57.3]}
12... Rfe8 {[%clk 0:02:16.4]} 13. Bg5 {[%clk 0:00:54.8]} 13... Qg7 {[%clk
0:02:16]} 14. Qf3 {[%clk 0:00:53.1]} 14... f5 {[%clk 0:02:13.8]} 15. Qxd5+
{[%clk 0:00:52.3]} 15... Qf7 {[%clk 0:02:13.1]} 16. Qb5 {[%clk 0:00:39.6]} 16...
Rxe1+ {[%clk 0:02:04.8]} 17. Rxe1 {[%clk 0:00:40.5]} 17... Re8 {[%clk
0:02:03.8]} 18. Rb1 {[%clk 0:00:25.5]} 18... Kg7 {[%clk 0:01:49.6]} 19. Bc4
{[%clk 0:00:21.9]} 19... Qd7 {[%clk 0:01:49]} 20. g3 {[%clk 0:00:21]} 20... h6
{[%clk 0:01:45.8]} 21. Bd2 {[%clk 0:00:18.8]} 21... f4 {[%clk 0:01:45.8]} 22.
Qd5 {[%clk 0:00:16.7]} 22... fxg3 {[%clk 0:01:43.5]} 23. hxg3 {[%clk 0:00:17.4]}
23... Rf8 {[%clk 0:01:42]} 24. Re1 {[%clk 0:00:15.4]} 24... Ne7 {[%clk
0:01:41.1]} 25. Qe4 {[%clk 0:00:13]} 25... Nf5 {[%clk 0:01:39.6]} 26. Be6 {[%clk
0:00:12.7]} 26... Qd8 {[%clk 0:01:36.5]} 27. c4 {[%clk 0:00:12.8]} 27... c6
{[%clk 0:01:27.6]} 28. d5 {[%clk 0:00:12.7]} 28... Qf6 {[%clk 0:01:26.5]} 29.
Qf3 {[%clk 0:00:11]} 29... c5 {[%clk 0:01:17.6]} 30. Bc3 {[%clk 0:00:09.9]}
30... Nd4 {[%clk 0:01:17.8]} 31. Qxf6+ {[%clk 0:00:10.3]} 31... Rxf6 {[%clk
0:01:17.8]} 32. Re4 {[%clk 0:00:07.4]} 32... Kf8 {[%clk 0:01:07.9]} 33. f4
{[%clk 0:00:07]} 33... g5 {[%clk 0:01:03.6]} 34. f5 {[%clk 0:00:07.1]} 34...
Bxg3 {[%clk 0:01:01.5]} 35. Kg2 {[%clk 0:00:03.9]} 35... Bd6 {[%clk 0:01:01.3]}
36. Rxd4 {[%clk 0:00:04.2]} 36... cxd4 {[%clk 0:01:00.6]} 37. Bxd4 {[%clk
0:00:05.1]} 37... Rxe6 {[%clk 0:00:31.9]} 38. fxe6 {[%clk 0:00:04.9]} 38... b6
{[%clk 0:00:32.5]} 39. Bf6 {[%clk 0:00:03.8]} 39... g4 {[%clk 0:00:32.8]} 40. c3
{[%clk 0:00:02.5]} 40... h5 {[%clk 0:00:33.3]} 41. Bg5 {[%clk 0:00:02.8]} 41...
Kg7 {[%clk 0:00:31]} 42. a4 {[%clk 0:00:03.1]} 42... Kg6 {[%clk 0:00:29.4]} 43.
Be3 {[%clk 0:00:03.4]} 43... Kf6 {[%clk 0:00:28.1]} 44. a5 {[%clk 0:00:03.8]}
44... bxa5 {[%clk 0:00:25.3]} 45. c5 {[%clk 0:00:04.4]} 45... Be5 {[%clk
0:00:24.4]} 46. Bd4 {[%clk 0:00:05.1]} 46... a4 {[%clk 0:00:23.8]} 47. Bxe5+
{[%clk 0:00:04.1]} 47... Ke7 {[%clk 0:00:24.3]} 48. Bd6+ {[%clk 0:00:03.6]}
48... Kf6 {[%clk 0:00:24.6]} 49. e7 {[%clk 0:00:03.4]} 49... Kf7 {[%clk
0:00:24.3]} 50. c6 {[%clk 0:00:04]} 50... a3 {[%clk 0:00:24.4]} 51. Bxa3 {[%clk
0:00:04.3]} 51... h4 {[%clk 0:00:24]} 52. c7 {[%clk 0:00:04.9]} 52... h3+ {[%clk
0:00:24.9]} 53. Kg3 {[%clk 0:00:05.3]} 53... Kf6 {[%clk 0:00:25.8]} 54. e8=Q
{[%clk 0:00:05.4]} 54... Kf5 {[%clk 0:00:26.7]} 55. Qe6+ {[%clk 0:00:05.9]}
55... Kg5 {[%clk 0:00:27.2]} 56. Be7+ {[%clk 0:00:06.2]} 56... Kh5 {[%clk
0:00:26.8]} 57. Qf5+ {[%clk 0:00:06.3]} 57... Kh6 {[%clk 0:00:26.7]} 58. Bf8#
{[%clk 0:00:07.2]} 1-0

[Event "Early-Titled-Tuesday-Blitz-April-02-2024"]
[Site "Chess.com"]
[Date "2024.04.02"]
[Round "1"]
[White "RichardShtivelband"]
[Black "Bilan_Danila"]
[Result "0-1"]
[WhiteElo "2259"]
[BlackElo "2609"]
[TimeControl "180+1"]
[EndTime "8:07:56 PDT"]
[Termination "Bilan_Danila won by resignation"]

1. d4 {[%clk 0:02:59]} 1... d5 {[%clk 0:02:59]} 2. c4 {[%clk 0:02:58]} 2... c6
{[%clk 0:02:59.3]} 3. Nf3 {[%clk 0:02:57.3]} 3... Nf6 {[%clk 0:02:58]} 4. Nc3
{[%clk 0:02:57]} 4... e6 {[%clk 0:02:57.9]} 5. e3 {[%clk 0:02:56.4]} 5... Nbd7
{[%clk 0:02:57.6]} 6. Bd3 {[%clk 0:02:55.9]} 6... Bd6 {[%clk 0:02:55.8]} 7. e4
{[%clk 0:02:50.9]} 7... dxe4 {[%clk 0:02:47]} 8. Nxe4 {[%clk 0:02:50.8]} 8...
Nxe4 {[%clk 0:02:45.5]} 9. Bxe4 {[%clk 0:02:51]} 9... Nf6 {[%clk 0:02:38.2]} 10.
Bc2 {[%clk 0:02:50.4]} 10... c5 {[%clk 0:02:24.7]} 11. O-O {[%clk 0:02:29.7]}
11... h6 {[%clk 0:02:16.9]} 12. dxc5 {[%clk 0:02:22.1]} 12... Bxc5 {[%clk
0:02:15.6]} 13. Qxd8+ {[%clk 0:02:21.2]} 13... Kxd8 {[%clk 0:02:16.5]} 14. Rd1+
{[%clk 0:02:17]} 14... Ke7 {[%clk 0:02:14.4]} 15. Bf4 {[%clk 0:02:07.3]} 15...
b6 {[%clk 0:02:03.8]} 16. a3 {[%clk 0:02:02.8]} 16... a5 {[%clk 0:01:52.2]} 17.
Ne5 {[%clk 0:01:43.9]} 17... Bb7 {[%clk 0:01:46.1]} 18. Nd3 {[%clk 0:01:42.3]}
18... Bd4 {[%clk 0:01:24.2]} 19. Be5 {[%clk 0:01:36.2]} 19... Rhd8 {[%clk
0:01:17]} 20. Rac1 {[%clk 0:01:25.8]} 20... Ne4 {[%clk 0:01:04.1]} 21. Bxd4
{[%clk 0:01:05.3]} 21... Rxd4 {[%clk 0:01:03.5]} 22. Ne5 {[%clk 0:01:04.6]}
22... Rad8 {[%clk 0:00:57.7]} 23. Rxd4 {[%clk 0:00:58.7]} 23... Rxd4 {[%clk
0:00:56]} 24. Rd1 {[%clk 0:00:52.7]} 24... Rxd1+ {[%clk 0:00:45.9]} 25. Bxd1
{[%clk 0:00:52.7]} 25... Nd2 {[%clk 0:00:43.1]} 26. b3 {[%clk 0:00:34.6]} 26...
f6 {[%clk 0:00:28.5]} 27. Ng6+ {[%clk 0:00:34.2]} 27... Kd6 {[%clk 0:00:27.1]}
28. f3 {[%clk 0:00:27.3]} 28... a4 {[%clk 0:00:26.8]} 29. bxa4 {[%clk
0:00:21.2]} 29... Nxc4 {[%clk 0:00:27]} 30. Kf2 {[%clk 0:00:19.8]} 30... Nxa3
{[%clk 0:00:26.8]} 31. Ke3 {[%clk 0:00:16.5]} 31... e5 {[%clk 0:00:23]} 32. h4
{[%clk 0:00:14.6]} 32... Nc4+ {[%clk 0:00:20.3]} 33. Ke2 {[%clk 0:00:13.7]}
33... Ba6 {[%clk 0:00:19.2]} 34. Kf2 {[%clk 0:00:13.4]} 34... Nb2 {[%clk
0:00:18.3]} 35. Bb3 {[%clk 0:00:13.2]} 35... Bc4 {[%clk 0:00:18.2]} 36. Bc2
{[%clk 0:00:10.2]} 36... Bf7 {[%clk 0:00:17.3]} 37. h5 {[%clk 0:00:05.2]} 37...
Bxg6 {[%clk 0:00:16.1]} 38. hxg6 {[%clk 0:00:05]} 38... Kc5 {[%clk 0:00:16.6]}
39. Ke3 {[%clk 0:00:05.3]} 39... Nc4+ {[%clk 0:00:14.9]} 40. Ke4 {[%clk
0:00:05.3]} 40... Nd6+ {[%clk 0:00:15.1]} 41. Kd3 {[%clk 0:00:05]} 41... Kb4
{[%clk 0:00:14.2]} 42. g3 {[%clk 0:00:03.9]} 42... Nf5 {[%clk 0:00:12.9]} 43. g4
{[%clk 0:00:01.2]} 43... Nd6 {[%clk 0:00:12.3]} 44. Bd1 {[%clk 0:00:02.1]} 44...
Kc5 {[%clk 0:00:06]} 45. f4 {[%clk 0:00:02.5]} 45... exf4 {[%clk 0:00:05.8]} 0-1

[Event "Early-Titled-Tuesday-Blitz-April-02-2024"]
[Site "Chess.com"]
[Date "2024.04.02"]
[Round "1"]
[White "Louis-Paulsen-Fan"]
[Black "Maxfan2008"]
[Result "1-0"]
[WhiteElo "2266"]
[BlackElo "2590"]
[TimeControl "180+1"]
[EndTime "8:07:56 PDT"]
[Termination "Louis-Paulsen-Fan won on time"]

1. d4 {[%clk 0:03:00]} 1... d5 {[%clk 0:02:58.7]} 2. Nf3 {[%clk 0:03:00.3]} 2...
Nf6 {[%clk 0:02:58.6]} 3. c4 {[%clk 0:03:00.9]} 3... c6 {[%clk 0:02:58.7]} 4.
Nc3 {[%clk 0:03:01.1]} 4... dxc4 {[%clk 0:02:58.8]} 5. e4 {[%clk 0:03:01.3]}
5... b5 {[%clk 0:02:57.8]} 6. e5 {[%clk 0:03:01.9]} 6... Nd5 {[%clk 0:02:57.7]}
7. a4 {[%clk 0:03:02.6]} 7... a6 {[%clk 0:02:48.6]} 8. axb5 {[%clk 0:02:54.9]}
8... Nxc3 {[%clk 0:02:41.8]} 9. bxc3 {[%clk 0:02:55.3]} 9... cxb5 {[%clk
0:02:42.1]} 10. Ng5 {[%clk 0:02:45.4]} 10... e6 {[%clk 0:02:23.4]} 11. Nxf7
{[%clk 0:02:39.7]} 11... Kxf7 {[%clk 0:02:15.3]} 12. Qf3+ {[%clk 0:02:39.7]}
12... Ke8 {[%clk 0:02:14.4]} 13. Qxa8 {[%clk 0:02:40.1]} 13... Qb6 {[%clk
0:02:05.6]} 14. Be2 {[%clk 0:02:21.6]} 14... Be7 {[%clk 0:01:59.7]} 15. Qe4
{[%clk 0:02:06.3]} 15... Bb7 {[%clk 0:01:47.6]} 16. Qg4 {[%clk 0:02:05.8]} 16...
g6 {[%clk 0:01:39.7]} 17. Bh6 {[%clk 0:01:55.6]} 17... Nd7 {[%clk 0:01:35]} 18.
O-O {[%clk 0:01:51.2]} 18... Bf8 {[%clk 0:01:25.3]} 19. Bxf8 {[%clk 0:01:37.8]}
19... Kxf8 {[%clk 0:01:26.2]} 20. Rfb1 {[%clk 0:01:37]} 20... Bd5 {[%clk
0:00:55.1]} 21. Bf3 {[%clk 0:01:29.7]} 21... Bxf3 {[%clk 0:00:51.1]} 22. Qxf3+
{[%clk 0:01:29.8]} 22... Kg7 {[%clk 0:00:51.3]} 23. h4 {[%clk 0:01:24.7]} 23...
Rf8 {[%clk 0:00:48.3]} 24. Qg4 {[%clk 0:01:23]} 24... Nxe5 {[%clk 0:00:31.1]}
25. Qg3 {[%clk 0:00:58.3]} 25... Nd3 {[%clk 0:00:29.3]} 26. Ra2 {[%clk
0:00:50.8]} 26... a5 {[%clk 0:00:25]} 27. h5 {[%clk 0:00:41.8]} 27... Rf5 {[%clk
0:00:22.1]} 28. hxg6 {[%clk 0:00:40]} 28... hxg6 {[%clk 0:00:21.2]} 29. Qe3
{[%clk 0:00:36.8]} 29... e5 {[%clk 0:00:17.8]} 30. Re2 {[%clk 0:00:29.5]} 30...
exd4 {[%clk 0:00:15.2]} 31. cxd4 {[%clk 0:00:26.7]} 31... Rf7 {[%clk 0:00:10.3]}
32. Qe4 {[%clk 0:00:20.5]} 32... b4 {[%clk 0:00:09.4]} 33. Rc2 {[%clk
0:00:17.7]} 33... b3 {[%clk 0:00:07.7]} 34. Rxc4 {[%clk 0:00:15.5]} 34... Nxf2
{[%clk 0:00:08]} 35. Qe5+ {[%clk 0:00:15.9]} 35... Kh7 {[%clk 0:00:06.6]} 36.
Rc8 {[%clk 0:00:15.2]} 36... Rg7 {[%clk 0:00:05.4]} 37. Kxf2 {[%clk 0:00:14.9]}
37... Rf7+ {[%clk 0:00:03.7]} 38. Kg1 {[%clk 0:00:14.5]} 38... Rf6 {[%clk
0:00:03.8]} 39. Rb8 {[%clk 0:00:13.4]} 39... Qc6 {[%clk 0:00:03.5]} 40. Rc8
{[%clk 0:00:12.1]} 40... Qb6 {[%clk 0:00:03.5]} 41. Rc5 {[%clk 0:00:10.9]} 41...
Rf5 {[%clk 0:00:03.1]} 42. Qe7+ {[%clk 0:00:09.6]} 42... Kh6 {[%clk 0:00:03.4]}
43. Rxf5 {[%clk 0:00:10.1]} 43... Qxd4+ {[%clk 0:00:03.8]} 44. Rf2 {[%clk
0:00:08.8]} 44... b2 {[%clk 0:00:03.6]} 45. Qe1 {[%clk 0:00:09]} 45... a4 {[%clk
0:00:03.5]} 46. Qd2+ {[%clk 0:00:09.4]} 46... Qxd2 {[%clk 0:00:03.8]} 47. Rxd2
{[%clk 0:00:10.2]} 47... a3 {[%clk 0:00:04.7]} 48. Rdxb2 {[%clk 0:00:10.7]}
48... a2 {[%clk 0:00:05.6]} 49. Ra1 {[%clk 0:00:10.4]} 1-0

[Event "Early-Titled-Tuesday-Blitz-April-02-2024"]
[Site "Chess.com"]
[Date "2024.04.02"]
[Round "1"]
[White "jk13"]
[Black "AsaHoffmann"]
[Result "1-0"]
[WhiteElo "2701"]
[BlackElo "2397"]
[TimeControl "180+1"]
[EndTime "8:07:57 PDT"]
[Termination "jk13 won by resignation"]

1. e4 {[%clk 0:03:00.9]} 1... d6 {[%clk 0:02:55.1]} 2. d4 {[%clk 0:03:00.4]}
2... c6 {[%clk 0:02:55.1]} 3. Nc3 {[%clk 0:03:00.2]} 3... a6 {[%clk 0:02:55]} 4.
h3 {[%clk 0:02:57.5]} 4... Nd7 {[%clk 0:02:52.3]} 5. f4 {[%clk 0:02:53.9]} 5...
g6 {[%clk 0:02:51]} 6. Nf3 {[%clk 0:02:52.4]} 6... Bg7 {[%clk 0:02:50.8]} 7. Bd3
{[%clk 0:02:49.4]} 7... b5 {[%clk 0:02:50.4]} 8. O-O {[%clk 0:02:49.2]} 8... Bb7
{[%clk 0:02:50.5]} 9. e5 {[%clk 0:02:39.4]} 9... d5 {[%clk 0:02:36.8]} 10. f5
{[%clk 0:02:39.1]} 10... gxf5 {[%clk 0:02:30.6]} 11. Bxf5 {[%clk 0:02:26.3]}
11... e6 {[%clk 0:02:30.1]} 12. Bd3 {[%clk 0:02:25.7]} 12... h6 {[%clk
0:02:21.8]} 13. Qe1 {[%clk 0:02:18.1]} 13... c5 {[%clk 0:02:02.2]} 14. Qg3
{[%clk 0:02:12.4]} 14... Bf8 {[%clk 0:02:01.3]} 15. Qf4 {[%clk 0:01:45.6]} 15...
Qe7 {[%clk 0:01:58.4]} 16. Be3 {[%clk 0:01:37.9]} 16... c4 {[%clk 0:01:52.1]}
17. Be2 {[%clk 0:01:37.7]} 17... O-O-O {[%clk 0:01:32.7]} 18. Nh2 {[%clk
0:01:30.6]} 18... h5 {[%clk 0:01:25.1]} 19. Qxf7 {[%clk 0:01:29.4]} 19... Qxf7
{[%clk 0:01:24.1]} 20. Rxf7 {[%clk 0:01:29.2]} 20... Bh6 {[%clk 0:01:24]} 21.
Bf2 {[%clk 0:01:08.7]} 21... Bd2 {[%clk 0:01:18.5]} 22. Bh4 {[%clk 0:01:04.5]}
22... Nh6 {[%clk 0:01:12.2]} 23. Re7 {[%clk 0:00:46.9]} 23... Nf5 {[%clk
0:01:01.5]} 24. Nf3 {[%clk 0:00:39.2]} 24... Bxc3 {[%clk 0:00:55.3]} 25. bxc3
{[%clk 0:00:36.9]} 25... Nxe7 {[%clk 0:00:55.2]} 26. Bxe7 {[%clk 0:00:37.8]}
26... Rde8 {[%clk 0:00:55.3]} 27. Bg5 {[%clk 0:00:34.2]} 27... Rhg8 {[%clk
0:00:53.4]} 28. h4 {[%clk 0:00:34.1]} 28... a5 {[%clk 0:00:50.5]} 29. a3 {[%clk
0:00:34.1]} 29... Nb8 {[%clk 0:00:49.8]} 30. Rb1 {[%clk 0:00:33.4]} 30... Ba6
{[%clk 0:00:49.4]} 31. Kf2 {[%clk 0:00:29.5]} 31... Nc6 {[%clk 0:00:49.4]} 32.
Ke3 {[%clk 0:00:30.1]} 32... Kd7 {[%clk 0:00:48]} 33. Nh2 {[%clk 0:00:29.1]}
33... Rb8 {[%clk 0:00:46]} 34. Bxh5 {[%clk 0:00:28]} 34... b4 {[%clk 0:00:40.9]}
35. axb4 {[%clk 0:00:28.4]} 35... axb4 {[%clk 0:00:40.9]} 36. Ra1 {[%clk
0:00:27.3]} 36... Bb5 {[%clk 0:00:38.1]} 37. cxb4 {[%clk 0:00:25.7]} 37... Nxb4
{[%clk 0:00:36.8]} 38. Ra7+ {[%clk 0:00:25.8]} 38... Kc6 {[%clk 0:00:35.3]} 39.
Kd2 {[%clk 0:00:21.1]} 39... Rbf8 {[%clk 0:00:31.7]} 40. Bf7 {[%clk 0:00:17.5]}
40... Rg7 {[%clk 0:00:28.1]} 41. Be8+ {[%clk 0:00:17.8]} 41... Rxe8 {[%clk
0:00:26.2]} 42. Rxg7 {[%clk 0:00:18.5]} 42... Kb6 {[%clk 0:00:22.2]} 43. h5
{[%clk 0:00:18.4]} 43... Nc6 {[%clk 0:00:22]} 44. c3 {[%clk 0:00:17.9]} 44...
Ra8 {[%clk 0:00:21.3]} 45. h6 {[%clk 0:00:17.2]} 45... Ra2+ {[%clk 0:00:20.2]}
46. Ke3 {[%clk 0:00:17.3]} 46... Rxg2 {[%clk 0:00:19.1]} 47. Nf3 {[%clk
0:00:17.5]} 47... Rg3 {[%clk 0:00:18.3]} 48. Kf4 {[%clk 0:00:17.2]} 48... Rh3
{[%clk 0:00:18]} 49. Kg4 {[%clk 0:00:17.9]} 49... Rh1 {[%clk 0:00:16.4]} 50. Nh4
{[%clk 0:00:18.3]} 50... Nxd4 {[%clk 0:00:15.7]} 51. cxd4 {[%clk 0:00:13.9]}
51... c3 {[%clk 0:00:15.7]} 52. h7 {[%clk 0:00:14.3]} 52... c2 {[%clk
0:00:14.6]} 53. h8=Q {[%clk 0:00:14.8]} 53... c1=Q {[%clk 0:00:13.7]} 54. Bxc1
{[%clk 0:00:14.8]} 54... Rxc1 {[%clk 0:00:13.2]} 55. Qb8+ {[%clk 0:00:14.7]}
55... Ka5 {[%clk 0:00:13.1]} 56. Ra7+ {[%clk 0:00:14.9]} 56... Kb4 {[%clk
0:00:13]} 57. Rb7 {[%clk 0:00:15.4]} 57... Rc4 {[%clk 0:00:11.7]} 58. Rxb5+
{[%clk 0:00:14.9]} 58... Kc3 {[%clk 0:00:11]} 59. Nf3 {[%clk 0:00:14.9]} 59...
Kd3 {[%clk 0:00:10.4]} 60. Rb3+ {[%clk 0:00:15]} 1-0